[Event "Reykjavik Open 2024"]
[Site "Reykjavik"]
[Date "2024.03.18"]
[Round "6.18"]
[White "Stanford, Maxim Barth"]
[Black "Fernandez, Daniel Howard"]
[Result "0-1"]
[ECO "B12"]
[WhiteElo "2275"]
[BlackElo "2532"]
[Annotator "TA"]
[PlyCount "80"]
[EventDate "2024.03.12"]
[EventCountry "ISL"]
[SourceTitle "playchess.com"]
[Source "ChessBase"]
[SourceQuality "1"]
[TimeControl "40/5400+30:1800+30"]

{[%evp 9,80,7,8,7,6,-38,-15,-17,-18,-97,-101,-100,-97,-124,-118,-125,-127,-135,-127,-166,-129,-145,-102,-134,-81,-96,-53,-69,-72,-119,-113,-130,-112,-132,-126,-137,-134,-157,-164,-161,-177,-232,-206,-193,-206,-261,-231,-284,-310,-318,-303,-274,-278,-434,-374,-391,-384,-436,-422,-435,-425,-709,-687,-693,-693,-1333,-1022,-1363,-1363,-1487,-1477,-1514,-1501]} 1. e4 {[%emt 0:00:15]} c6 {[%emt 0:08:16]} 2. d4 {[%emt 0:00:31]} d5 {[%emt 0:00:05]} 3. e5 {[%emt 0:00:36]} Bf5 {[%emt 0:00:44]} 4. h4 {[%emt 0:00:41]} h5 {[%emt 0:00:46]} 5. Bd3 {[%emt 0:01:27]} Bxd3 {[%emt 0:03:37]} 6. Qxd3 {[%emt 0:00:08][%cal Oe5e6]} Qa5+ {[%emt 0:00:05]} 7. b4 {[%emt 0:04:12]} Qxb4+ {[%emt 0:01:33]} 8. Nd2 {[%emt 0:01:40] Strongly threatening Rb1. The position is equal.} e6 {[%emt 0:00:02]} 9. Ngf3 {[%emt 0:04:35]} (9. Rb1 $11 Qe7 10. Ne2) 9... Qa4 $1 $17 {[%emt 0:01:40] Black is more active.} 10. O-O {[%emt 0:04:17]} Nh6 {[%emt 0:02:41]} 11. Rb1 {[%emt 0:06:52]} b5 {[%emt 0:12:40]} 12. Nb3 {[%emt 0:05:20]} Nf5 {[%emt 0:02:09]} 13. g3 {[%emt 0:03:01]} Nd7 {[%emt 0:03:08]} (13... Qxa2 $2 14. Ra1 $18) 14. Bd2 {[%emt 0:13:15]} Rc8 {[%emt 0:03:14][%cal Oa7a6]} (14... Qxa2 $2 15. Ra1 Qb2 16. Rfb1 $18) 15. a3 {[%emt 0:10:02]} Qc4 {[%emt 0:09:15]} (15... Bxa3 16. Ra1 $15) 16. Bb4 {[%emt 0:03:10]} c5 {[%emt 0:02:27]} (16... Bxb4 $142 17. axb4 Qxb4) 17. dxc5 {[%emt 0:00:53][%cal Oc5c6]} Nxc5 {[%emt 0:00:20]} 18. Qxc4 {[%emt 0:02:04]} dxc4 {[%emt 0:00:04] White is now going downhill.} ({Inferior is} 18... bxc4 19. Nxc5 a5 (19... Bxc5 $2 {is the wrong capture.} 20. Bxc5 Kd7 21. Bxa7 $18) 20. Nxe6 axb4 21. Nxf8 bxa3 22. Rb7 (22. Ra1 Ra8 $11) 22... Kxf8 (22... Rxf8 23. Ra7 $14) 23. Ra7 $16) 19. Nbd2 {[%emt 0:01:17]} ({Better is} 19. Nxc5 Bxc5 20. Kg2) 19... a6 $1 {[%emt 0:00:32]} 20. Kg2 {[%emt 0:05:28] [#]} Na4 $1 {[%emt 0:03:17]} 21. Ne4 {[%emt 0:00:33]} Bxb4 {[%emt 0:02:06]} 22. axb4 {[%emt 0:00:08]} Ke7 {[%emt 0:00:14]} 23. Rfd1 {[%emt 0:02:27]} Rhd8 {[%emt 0:00:04]} 24. Rxd8 {[%emt 0:04:36]} Rxd8 {[%emt 0:00:03]} 25. Ra1 {[%emt 0:01:20]} (25. Ned2 {was the only defense.}) 25... Nd4 {[%emt 0:04:52]} 26. Nxd4 {[%emt 0:02:16]} Rxd4 $19 {[%emt 0:00:03][%mdl 4096] Endgame. KRN-KRN} 27. Kf3 {[%emt 0:01:58] [#]} c3 $1 {[%emt 0:08:33]} 28. Ra3 {[%emt 0:01:26]} Rxb4 {[%emt 0:01:52]} 29. Nxc3 {[%emt 0:01:09]} Nc5 {[%emt 0:00:12]} 30. Ne2 {[%emt 0:02:36]} Rc4 {[%emt 0:01:45]} 31. c3 {[%emt 0:01:07]} (31. Ra2 $142) 31... Kd7 {[%emt 0:04:36]} 32. Ra2 {[%emt 0:04:12]} Kc7 {[%emt 0:01:13]} 33. Kg2 {[%emt 0:02:18]} Kb6 {[%emt 0:01:46] Black is clearly winning.} 34. Rd2 {[%emt 0:01:58]} a5 {[%emt 0:00:25]} 35. Rd8 {[%emt 0:01:15]} (35. Rd6+ $142 Kb7 36. Nd4 Rxc3 37. Nxb5) 35... a4 {[%emt 0:01:13]} 36. Rb8+ {[%emt 0:00:27]} Kc6 {[%emt 0:04:40] ...Nb3 would now be deadly.} 37. Nd4+ {[%emt 0:01:09] [#]} Rxd4 $1 {[%emt 0:02:14][%mdl 512]} 38. cxd4 {[%emt 0:00:05]} Na6 {[%emt 0:00:10]} 39. d5+ {[%emt 0:04:30]} exd5 {[%emt 0:00:06]} ({Weaker is} 39... Kxd5 40. Rxb5+ Kc4 41. Ra5 $15) 40. Ra8 {[%emt 0:01:07]} Nc7 {[%emt 0:00:10] Weighted Error Value: White=0.48/Black=0.08 (flawless) .  Mistake:       	White=5     	Black=1      Inaccurate:     	White=3     	Black=1      OK:         	White=5     	Black=17     Best:        	---       	Black=1      Strong:       	---       	Black=3} 0-1

[Event "Reykjavik Open 2024"]
[Site "Reykjavik"]
[Date "2024.03.18"]
[Round "6.19"]
[White "Karamsetty, Jeevan"]
[Black "Stefansson, Hannes"]
[Result "0-1"]
[ECO "B23"]
[WhiteElo "2187"]
[BlackElo "2481"]
[Annotator "TA"]
[PlyCount "158"]
[EventDate "2024.03.12"]
[EventCountry "ISL"]
[SourceTitle "playchess.com"]
[Source "ChessBase"]
[SourceQuality "1"]
[TimeControl "40/5400+30:1800+30"]

{[%evp 43,158,-19,-12,-6,-8,-25,0,0,0,-5,-3,-14,-12,-50,-61,-57,-54,-52,-43,-99,-41,-37,-39,-55,-56,-90,-80,-91,-90,-95,-77,-74,-77,-85,0,-66,-68,-56,-64,-57,0,-75,0,0,0,-58,-58,-52,0,0,0,0,0,0,0,0,0,0,0,0,0,0,0,0,0,-3,0,0,0,0,0,0,0,0,0,0,0,0,0,0,0,0,0,0,0,0,0,0,0,0,-8,-8,-8,-10,-8,-18,-10,-10,-10,-560,-549,-552,-538,-519,-505,-8548,-7905,-2170,-1072,-29977,-29978,-29978,-29978,-29981,-29982,-29984,-29981]} 1. e4 {[%emt 0:04:05]} c5 {[%emt 0:00:27]} 2. Nc3 {[%emt 0:00:19]} Nc6 {[%emt 0:00:31]} 3. Bb5 {[%emt 0:00:15]} Nd4 {[%emt 0:00:35]} 4. Bc4 {[%emt 0:00:09]} a6 {[%emt 0:01:18]} 5. a4 {[%emt 0:00:16]} e6 {[%emt 0:01:12]} 6. Nge2 {[%emt 0:00:12] B23: Sizilianisch (Geschlossenes System).} Nf6 {[%emt 0:02:37]} 7. O-O {[%emt 0:00:29]} Qc7 {[%emt 0:02:13]} 8. d3 {[%emt 0:00:42]} Be7 {[%emt 0:04:40]} 9. Nxd4 {[%emt 0:07:00]} cxd4 {[%emt 0:00:22]} 10. Ne2 {[%emt 0:00:07]} Nxe4 {[%emt 0:05:32]} 11. dxe4 {[%emt 0:03:09]} Qxc4 {[%emt 0:00:14]} 12. Nxd4 {[%emt 0:01:19]} Bf6 $146 {[%emt 0:02:51]} ({Predecessor:} 12... b6 13. c3 O-O 14. Re1 Bb7 15. Qg4 f6 16. Qg3 Rac8 17. Bf4 Rf7 18. Bd6 Bxd6 19. Qxd6 Qc7 20. Qxc7 Rxc7 21. a5 b5 22. Nc2 d6 {½-½ Milosevic,G (2403)-Golod,V (2577) Basel Hilton op 08th 2006 (4)}) 13. c3 {[%emt 0:08:54]} b6 {[%emt 0:04:29]} 14. Bf4 {[%emt 0:06:07]} Bb7 {[%emt 0:03:42]} 15. Re1 {[%emt 0:03:17]} O-O {[%emt 0:02:23]} 16. Bd6 {[%emt 0:02:36]} Rfe8 {[%emt 0:01:09]} 17. Rc1 {[%emt 0:02:21]} Bxe4 {[%emt 0:05:09]} 18. Rxe4 {[%emt 0:08:59]} Qd5 {[%emt 0:00:05]} 19. Nxe6 {[%emt 0:06:51]} Qxe4 {[%emt 0:01:38]} 20. Nc7 {[%emt 0:00:17]} Rac8 {[%emt 0:00:35]} 21. Nxe8 {[%emt 0:01:50]} Rxe8 {[%emt 0:00:05]} 22. Ra1 {[%emt 0:06:50]} h5 {[%emt 0:09:55]} 23. h3 {[%emt 0:01:50]} (23. Qxh5 $2 Qe1+ 24. Rxe1 Rxe1#) 23... Re6 {[%emt 0:05:47]} 24. Bc7 {[%emt 0:05:49]} Qf5 {[%emt 0:03:23]} 25. Qf1 {[%emt 0:10:17]} (25. Qxd7 $2 Re1+ 26. Rxe1 Qxd7 $19) 25... Rc6 {[%emt 0:04:17]} 26. Bb8 {[%emt 0:04:31]} Qc2 {[%emt 0:00:39]} 27. Re1 {[%emt 0:08:32]} Rc8 {[%emt 0:01:47]} 28. Be5 {[%emt 0:01:30]} Bxe5 {[%emt 0:01:20]} ({Bitte nicht} 28... Qxa4 $6 29. Bxf6 gxf6 30. Qd3 $14) (28... Qxb2 29. Rb1 Qc2 30. Bxf6 gxf6 31. Rxb6 $11) 29. Rxe5 {[%emt 0:00:04]} Qxb2 {[%emt 0:00:35]} 30. Qxa6 {[%emt 0:02:02]} Qxc3 {[%emt 0:03:11]} 31. Qe2 {[%emt 0:00:52] [#]} (31. Rxh5 $15 Qc1+ 32. Qf1) 31... Qc1+ {[%emt 0:05:25]} (31... g6 $1 $17 32. Rb5 Qc1+ 33. Kh2 Qc7+ 34. Qe5 Qxe5+ 35. Rxe5 Kf8) 32. Kh2 $15 {[%emt 0:00:16]} Qc7 {[%emt 0:01:00]} 33. g3 {[%emt 0:00:54]} (33. Qxh5 $2 {ist das falsche Schlagen.} f6 34. f4 fxe5 $19) 33... g6 {[%emt 0:00:23]} 34. Qe3 {[%emt 0:00:47]} h4 {[%emt 0:01:12]} 35. Qf4 {[%emt 0:02:52]} hxg3+ {[%emt 0:00:13]} 36. Qxg3 {[%emt 0:00:46]} Qc6 {[%emt 0:02:55]} 37. Qf4 {[%emt 0:00:36]} Kg7 {[%emt 0:09:40]} 38. Rb5 {[%emt 0:00:19]} Kg8 {[%emt 0:03:28]} (38... Qc3 $17) 39. Qd4 {[%emt 0:00:51]} (39. Re5 $11) 39... Qc7+ {[%emt 0:01:29]} (39... Qc4 {vereinfacht} 40. Qxc4 Rxc4 41. Rxb6 Rxa4 42. Rd6 Ra7) 40. Kg1 {[%emt 0:00:53]} Qc1+ {[%emt 0:03:11]} 41. Kg2 {[%emt 0:05:10]} Qc6+ {[%emt 0:01:09]} (41... Qc4 {vereinfacht} 42. Qxc4 Rxc4 43. Rxb6 Rxa4 44. Rd6 Ra7) 42. Kh2 $1 {[%emt 0:00:30] [#]} Rb8 {[%emt 0:05:57]} (42... Qc4 $1 $17 {[%cal Rc4d4]} 43. Qxc4 Rxc4) 43. Rd5 $11 {[%emt 0:03:03]} Rb7 {[%emt 0:02:08]} 44. Qe5 {[%emt 0:09:13]} ({Vorzuziehen ist} 44. Rd6 $11 Qc5 45. Qxc5 bxc5 46. a5) 44... Qe6 $1 $15 {[%emt 0:07:20]} ({Viel schwächer wäre} 44... Qxa4 45. Qe8+ Kg7 46. Qe5+ Kg8 47. Qe8+ Kg7 48. Qe5+ Kg8 $11) 45. Qd4 {[%emt 0:01:22]} Qe8 {[%emt 0:04:52]} (45... Ra7 $15 46. Rb5 Ra6) 46. Rd6 $11 {[%emt 0:01:37]} Qb8 {[%emt 0:00:52]} 47. Kg1 {[%emt 0:02:12]} Rc7 {[%emt 0:05:26]} 48. Rxd7 {[%emt 0:02:24]} Rxd7 {[%emt 0:00:55]} 49. Qxd7 {[%emt 0:00:06]} Qa8 {[%emt 0:00:42]} 50. Qb5 {[%emt 0:02:18]} Qd8 {[%emt 0:00:09]} 51. Kg2 {[%emt 0:00:15]} Qc7 {[%emt 0:00:49]} 52. Qe8+ {[%emt 0:00:32]} Kg7 {[%emt 0:00:05]} 53. Qe4 {[%emt 0:00:11]} Qc5 {[%emt 0:00:23]} 54. Kf1 {[%emt 0:01:37]} f5 {[%emt 0:00:43]} 55. Qb7+ {[%emt 0:00:29]} Kh6 {[%emt 0:00:06]} 56. Qa8 {[%emt 0:00:18]} Qd4 {[%emt 0:00:49]} 57. Qf8+ {[%emt 0:03:26]} Kh5 {[%emt 0:00:25]} 58. Qa3 {[%emt 0:00:15]} Qe4 {[%emt 0:02:05]} 59. Qb3 {[%emt 0:03:51]} Qc6 {[%emt 0:01:08]} 60. Ke2 {[%emt 0:00:47]} Qd6 {[%emt 0:00:30]} 61. Qc4 {[%emt 0:00:56]} Qe5+ {[%emt 0:02:28]} 62. Kd2 {[%emt 0:00:35]} Kg5 {[%emt 0:00:37]} 63. Qc6 {[%emt 0:00:32]} Qd4+ {[%emt 0:00:48]} 64. Ke2 {[%emt 0:00:11]} Qb2+ {[%emt 0:01:33]} 65. Kf3 {[%emt 0:00:41]} Qb1 {[%emt 0:00:18]} 66. Qc4 {[%emt 0:00:34]} Qh1+ {[%emt 0:00:43]} 67. Kg3 {[%emt 0:00:17]} Qg1+ {[%emt 0:00:06]} 68. Kf3 {[%emt 0:00:08]} Qh2 {[%emt 0:00:14]} 69. Qc1+ {[%emt 0:00:28]} Kh5 {[%emt 0:00:21]} 70. Qf1 {[%emt 0:00:58]} g5 {[%emt 0:03:36]} 71. Ke3 $2 {[%emt 0:00:42][%mdl 8192]} (71. Ke2 $11 {und Weiss ist OK.}) 71... Qf4+ $19 {[%emt 0:00:36]} 72. Kd3 {[%emt 0:00:15]} Qxa4 {[%emt 0:00:46]} 73. Qe2+ {[%emt 0:00:29]} Kh4 {[%emt 0:00:08]} 74. Qb2 {[%emt 0:00:18]} (74. Qe6 $142 Qd1+ (74... Kxh3 $2 75. Qxf5+ Qg4 76. Qf7 $19) 75. Kc4 Qf1+ (75... Kxh3 $2 76. Qe3+ Kg4 77. Qg3+ Kh5 78. Kb5 $19) 76. Kb4 Qxh3 (76... Qxf2 $2 77. Qh6+ Kg3 78. Qxg5+ Kxh3 79. Kb5 $19) 77. f4 gxf4 78. Qe7+ Kg3 79. Qe5) 74... Qe4+ $19 {[%emt 0:01:08]} 75. Kd2 {[%emt 0:00:05]} Kxh3 {[%emt 0:01:14]} 76. Qxb6 {[%emt 0:00:57]} Kg2 {[%emt 0:00:19]} 77. Qc5 {[%emt 0:00:54]} g4 {[%emt 0:00:18]} 78. Qb6 {[%emt 0:00:33]} f4 {[%emt 0:00:30]} 79. Qd8 {[%emt 0:00:29]} Qf3 {[%emt 0:00:25]} 0-1

[Event "Reykjavik Open 2024"]
[Site "Reykjavik"]
[Date "2024.03.18"]
[Round "6.20"]
[White "Zhu, Jiner"]
[Black "Loncke, Matthieu"]
[Result "1-0"]
[ECO "B50"]
[WhiteElo "2467"]
[BlackElo "2175"]
[Annotator "TA"]
[PlyCount "81"]
[EventDate "2024.03.12"]
[EventCountry "ISL"]
[SourceTitle "playchess.com"]
[Source "ChessBase"]
[SourceQuality "1"]
[TimeControl "40/5400+30:1800+30"]

{[%evp 9,80,-2,25,2,42,40,37,0,0,0,9,7,18,0,66,66,68,70,72,65,69,51,59,58,62,-30,153,141,146,137,163,182,164,165,317,168,136,136,120,63,126,50,62,0,0,0,0,0,0,-12,-12,-38,-38,-23,-23,-24,-5,-5,-5,-20,0,0,0,0,199,237,770,728,644,567,29987,29988,29999]} 1. e4 {[%emt 0:00:04]} c5 {[%emt 0:00:19]} 2. Nf3 {[%emt 0:00:06]} d6 {[%emt 0:00:25][%cal Bd7d6,Bd6d5][%mdl 32]} 3. c3 {[%emt 0:00:10]} Nf6 {[%emt 0:01:29]} 4. h3 {[%emt 0:00:10]} Nc6 {[%emt 0:01:33]} 5. Bd3 {[%emt 0:00:10]} Qc7 {[%emt 0:06:43]} 6. O-O {[%emt 0:01:06]} e6 {[%emt 0:04:13]} 7. Re1 {[%emt 0:02:29]} d5 {[%emt 0:04:47]} 8. e5 {[%emt 0:00:38] White is slightly better.} Nd7 {[%emt 0:00:17][%cal Rd7e5]} 9. Bb5 {[%emt 0:01:02]} c4 {[%emt 0:09:58]} 10. d4 {[%emt 0:00:49] Repels Nc5} cxd3 {[%emt 0:00:22]} 11. Bf4 {[%emt 0:06:25]} a6 {[%emt 0:12:00]} (11... Qb6 $11 12. Qxd3 (12. Bxd3 Qxb2 13. Nbd2 Qxc3 $15) 12... a6 13. Bxc6 bxc6) 12. Bxd3 $14 {[%emt 0:00:24]} b5 {[%emt 0:00:21]} 13. Nbd2 {[%emt 0:01:58]} Bb7 {[%emt 0:00:52]} 14. Qe2 {[%emt 0:07:38]} Be7 {[%emt 0:03:01]} 15. a3 {[%emt 0:08:16]} Na5 {[%emt 0:02:57]} 16. b4 {[%emt 0:02:33]} Nc4 {[%emt 0:01:00]} 17. a4 {[%emt 0:00:19]} (17. Nd4 $14) 17... Ndb6 $2 {[%emt 0:07:16]} (17... Nb2 $1 $11 18. Rec1 (18. axb5 Qxc3 $15) 18... bxa4) 18. axb5 $16 {[%emt 0:05:10]} axb5 {[%emt 0:00:39]} 19. Nd4 {[%emt 0:00:08]} Qd7 {[%emt 0:01:07]} 20. Rxa8+ {[%emt 0:00:59]} Bxa8 {[%emt 0:00:10] [#]} 21. Qg4 $1 {[%emt 0:00:22]} g5 {[%emt 0:05:39]} (21... Kf8 22. h4 Bc6) 22. Bh2 {[%emt 0:03:05]} (22. Bxg5 $142 Rg8 23. f4 (23. Bxh7 Rxg5 24. Qf4 Nxd2 $15)) 22... h5 {[%emt 0:01:28]} (22... Nxd2 $2 {too greedy.} 23. Bxb5 h5 24. Qe2 $18 (24. Bxd7+ Kxd7 25. Qd1 Ndc4 $18)) 23. Qe2 {[%emt 0:00:10] White is much more active.} Na4 {[%emt 0:02:17]} 24. Nb1 {[%emt 0:10:06]} ({Better is} 24. Rc1 $16) 24... Qb7 {[%emt 0:04:02]} (24... Bd8 $14) 25. Bc2 {[%emt 0:01:44]} (25. f4 $16) 25... Qb6 $14 {[%emt 0:01:59][%cal Oe7b4]} 26. Bxa4 {[%emt 0:05:49]} ({White should try} 26. Qd3 $14) 26... bxa4 $11 {[%emt 0:00:29]} 27. Nd2 {[%emt 0:00:07]} Nxd2 {[%emt 0:01:31]} 28. Qxd2 {[%emt 0:00:08]} Bc6 {[%emt 0:01:59]} 29. Ra1 {[%emt 0:00:07][%cal Ob4b5]} Bd7 {[%emt 0:01:37]} 30. Qe2 {[%emt 0:07:17]} Qc7 {[%emt 0:08:17]} ({But not} 30... Bxb4 $2 31. Rb1 $18) 31. Qe3 {[%emt 0:01:01]} Qc4 {[%emt 0:01:03]} 32. f4 {[%emt 0:01:21]} gxf4 {[%emt 0:01:36]} 33. Bxf4 {[%emt 0:00:06]} Rg8 {[%emt 0:00:19]} 34. Kh2 {[%emt 0:02:54]} Bd8 {[%emt 0:01:39]} 35. Qf3 {[%emt 0:02:11]} Bb6 {[%emt 0:02:20]} 36. Rf1 {[%emt 0:00:20][%cal Of4g5] [#] aiming for Bg5!} Bxd4 $2 {[%emt 0:02:31]} (36... Bc7 $11 {and Black stays safe.}) 37. cxd4 $18 {[%emt 0:00:06]} Qxd4 $2 {[%emt 0:01:25]} (37... Qc2) 38. Bg3 {[%emt 0:04:51]} Rf8 {[%emt 0:00:32]} 39. Qf6 {[%emt 0:01:06] Black must now prevent Bh4.} (39. Qxh5 Qe3 40. Rf3 Qe4 $18) 39... Qxb4 {[%emt 0:01:02]} 40. Bh4 {[%emt 0:00:27][%csl Gh4][%cal Rf6d8]} Qb6 {[%emt 0:03:17]} 41. Qe7# {[%emt 0:31:03] Weighted Error Value: White=0.20 (precise) /Black=0.43.  Loses game:     	---       	Black=1      Mistake:       	White=5     	Black=5      Inaccurate:     	White=2     	Black=1      OK:         	White=11    	Black=12     Best:        	White=3     	---} 1-0

[Event "Reykjavik Open 2024"]
[Site "Reykjavik"]
[Date "2024.03.18"]
[Round "6.21"]
[White "Stefansson, Vignir Vatnar"]
[Black "Mardell, Jimmy"]
[Result "0-1"]
[ECO "A12"]
[WhiteElo "2464"]
[BlackElo "2172"]
[Annotator "TA"]
[PlyCount "114"]
[EventDate "2024.03.12"]
[EventCountry "ISL"]
[SourceTitle "playchess.com"]
[Source "ChessBase"]
[SourceQuality "1"]
[TimeControl "40/5400+30:1800+30"]

{[%evp 20,114,-12,-28,-28,-24,-26,-28,0,-23,-6,-23,0,0,11,-15,-20,-27,-25,-30,-8,-64,-80,-115,-129,-148,-129,-180,-161,-286,-240,-280,-297,-277,-197,-421,-360,-361,-347,-368,-351,-324,-199,-305,-243,-310,-234,-415,-335,-385,-395,-420,-419,-425,-425,-432,-414,-491,-484,-803,-784,-783,-472,-905,-905,-833,-825,-852,-824,-879,-841,-1690,-1440,-2232,-2327,-3029,-1463,-1954,-1631,-1473,-1287,-29975,-29976,-29976,-29977,-29977,-29978,-29978,-29979,-29982,-29980,-29980,-29980,-29980,-29980,-29978,-29975]} 1. Nf3 {[%emt 0:07:58]} d5 {[%emt 0:00:39]} 2. c4 {[%emt 0:00:18]} c6 {[%emt 0:01:33]} 3. g3 {[%emt 0:00:12]} Nf6 {[%emt 0:01:10]} 4. Bg2 {[%emt 0:00:25]} Bf5 {[%emt 0:07:07]} 5. b3 {[%emt 0:07:48]} e6 {[%emt 0:02:19]} 6. Bb2 {[%emt 0:00:19]} Be7 {[%emt 0:00:44]} 7. O-O {[%emt 0:00:13]} O-O {[%emt 0:00:23]} 8. d3 {[%emt 0:00:13]} h6 {[%emt 0:09:18]} 9. Nbd2 {[%emt 0:00:40]} Nbd7 {[%emt 0:07:27]} 10. Re1 {[%emt 0:01:09]} Bh7 {[%emt 0:05:18]} 11. Qc2 {[%emt 0:01:24]} a5 {[%emt 0:05:34]} 12. a3 {[%emt 0:02:28]} Re8 {[%emt 0:00:50]} 13. Rad1 {[%emt 0:03:10]} e5 {[%emt 0:05:54] Black has an edge.} 14. cxd5 {[%emt 0:05:25]} cxd5 {[%emt 0:00:14]} 15. Nxe5 {[%emt 0:01:22]} Nxe5 {[%emt 0:00:09]} 16. Bxe5 {[%emt 0:00:09]} Bxa3 {[%emt 0:00:51]} 17. Bd4 {[%emt 0:10:20]} Rc8 {[%emt 0:03:04]} 18. Qa2 {[%emt 0:00:24]} Bb4 {[%emt 0:00:36]} 19. Qb2 {[%emt 0:00:22]} Rc6 {[%emt 0:04:12]} 20. Kf1 {[%emt 0:02:39]} (20. Bf1 $11) 20... Qe7 $15 {[%emt 0:12:28] Black is much more active. Black continues to play with concentration.} 21. e4 {[%emt 0:06:42]} dxe4 {[%emt 0:08:22]} 22. dxe4 {[%emt 0:00:29]} Qc7 {[%emt 0:09:00]} 23. Bxf6 {[%emt 0:04:23]} (23. Qa1 $17) 23... Rxf6 {[%emt 0:00:25]} 24. Re2 {[%emt 0:00:14]} (24. e5 $142 Bd3+ 25. Kg1) 24... Qd7 {[%emt 0:06:27]} 25. Rc1 {[%emt 0:02:14]} Rd6 {[%emt 0:00:49]} 26. Nf3 {[%emt 0:03:18]} Bxe4 {[%emt 0:01:05]} 27. Ne1 $2 {[%emt 0:00:19]} (27. Kg1 {only move.}) 27... Bf5 {[%emt 0:03:01] [#] Strongly threatening ...Qb5. This pair of bishops is nice.} 28. Rxe8+ {[%emt 0:02:33]} Qxe8 {[%emt 0:00:04]} 29. Nf3 {[%emt 0:00:04] Wards off Rd2} b5 {[%emt 0:03:34] White is weak on the light squares} 30. Kg1 {[%emt 0:00:33]} Qd7 {[%emt 0:00:31] aiming for ...Rd1+.} 31. Qa1 {[%emt 0:00:07] [#]} (31. Qe2 {is the only way for White.}) 31... Bc2 $1 {[%emt 0:01:37][%mdl 512]} 32. Bf1 {[%emt 0:00:17]} (32. Ne5 Rd1+) 32... Rd1 {[%emt 0:00:45] White must now prevent ...Rxc1.} 33. Rxd1 {[%emt 0:03:06]} (33. Nd4 Bc3 (33... Rxd4 34. Rxc2 Rd1 35. Rc8+ Qxc8 36. Qxd1 $15) (33... Qxd4 34. Qxd4 Rxd4 35. Rxc2 $17) (33... Rxc1 $2 34. Qxc1 Be4 35. Qe3 $19) 34. Qxc3 Rxc1 35. Nxc2) 33... Qxd1 $19 {[%emt 0:00:04]} (33... Bxd1 34. Nd4 $17) 34. Qxd1 {[%emt 0:00:55]} Bxd1 {[%emt 0:00:04][%mdl 4096] Endgame. KBB-KBN} 35. Nd4 {[%emt 0:00:03]} a4 {[%emt 0:00:58]} ({Less strong is} 35... Bc5 36. Be2 $19) 36. bxa4 {[%emt 0:00:45]} bxa4 {[%emt 0:00:05]} 37. Bc4 {[%emt 0:00:02]} Bc5 {[%emt 0:00:52]} 38. Nb5 {[%emt 0:00:09]} Bb3 {[%emt 0:01:14]} 39. Bxb3 {[%emt 0:00:24]} (39. Be2 $142) 39... axb3 {[%emt 0:00:04] KB-KN} 40. Nc3 {[%emt 0:00:02]} Bd4 {[%emt 0:00:52]} 41. Nb1 {[%emt 0:30:12]} f5 {[%emt 0:01:41]} 42. Kf1 {[%emt 0:00:00]} Kf7 {[%emt 0:00:07]} 43. Ke2 {[%emt 0:00:00]} Ke6 {[%emt 0:00:12]} 44. f3 {[%emt 0:00:00]} g5 {[%emt 0:03:47]} 45. h3 {[%emt 0:00:00]} h5 {[%emt 0:08:23] ...Be5 is the strong threat.} 46. Nd2 {[%emt 0:00:00]} b2 {[%emt 0:00:15] Hoping for ...Ke5.} 47. Kd3 {[%emt 0:00:00]} Kd5 {[%emt 0:00:35]} (47... Be5 $142 48. Kc2 Bxg3 49. Kxb2 Ke5) 48. Kc2 {[%emt 0:00:00]} Bf6 {[%emt 0:10:53]} 49. Kd3 {[%emt 0:00:00]} Be5 {[%emt 0:01:20]} 50. g4 {[%emt 0:00:00]} fxg4 {[%emt 0:01:27] Black mates.} 51. fxg4 {[%emt 0:00:00]} h4 {[%emt 0:00:29]} 52. Nb1 {[%emt 0:00:00]} Bf4 {[%emt 0:01:50]} 53. Nc3+ {[%emt 0:00:00]} Ke5 {[%emt 0:00:05]} 54. Ke2 {[%emt 0:00:00]} Bc1 {[%emt 0:00:49]} 55. Nb1 {[%emt 0:00:00]} Kf4 {[%emt 0:00:12]} 56. Kf2 {[%emt 0:00:00]} Be3+ {[%emt 0:00:19]} 57. Ke2 {[%emt 0:00:00]} Bc5 {[%emt 0:00:48] Weighted Error Value: White=0.60/Black=0.42.  Mistake:       	White=7     	---        Inaccurate:     	White=2     	Black=3      OK:         	White=9     	Black=8      Best:        	White=2     	Black=3} 0-1